bitfinex-derivatives/quotes_ETHF0:USTF0_20250912
["timestamp","ask_amount","ask_price","bid_price","bid_amount"]
[1757643336481,0.5141,4517.9,4517.8,16.527]
[1757643336688,0.8337,4517.9,4517.8,16.3]
[1757643336985,0.8337,4517.9,4517.8,16.527]
[1757643337481,0.631,4517.9,4517.8,16.527]
[1757643337783,0.4288,4517.9,4517.8,16.527]
[1757643338489,0.8337,4517.9,4517.8,16.527]
[1757643338679,0.8337,4517.9,4517.8,16.3]
[1757643338876,0.8337,4517.9,4517.8,16.527]
[1757643339287,0.7168,4517.9,4517.8,16.527]
[1757643339485,0.7168,4517.9,4517.8,17.1950542]
[1757643339688,0.5141,4517.9,4517.8,16.92529]
[1757643340189,0.631,4517.9,4517.8,16.92529]
[1757643340782,0.631,4517.9,4517.8,16.527]
[1757643341384,0.8337,4517.9,4517.8,16.3]
[1757643341579,0.8337,4517.9,4517.8,16.527]
[1757643341787,0.8337,4517.9,4517.8,0.227]
[1757643344488,0.631,4517.9,4517.8,0.227]
[1757643347397,0.8337,4517.9,4517.8,0.227]
[1757643350289,0.5218,4517.9,4517.7,48.164]
[1757643350496,0.3119,4517.8,4517.7,48.164]
[1757643350797,0.3119,4517.8,4517.7,48.391]
[1757643357603,0.1221,4518.0,4517.7,48.391]
[1757643357604,0.1221,4518.0,4517.8,0.39829]
[1757643357800,0.1221,4518.0,4517.9,0.226]
[1757643359204,0.1221,4518.0,4517.9,1.80345827]
[1757643359503,0.4155,4518.0,4517.9,0.226]
[1757643360312,0.2934,4518.4,4518.3,0.39825]
[1757643360507,0.2934,4518.4,4518.3,3.83205]
[1757643360708,0.5051,4518.4,4518.3,1.59025123]
[1757643361010,0.7985,4518.4,4518.3,16.526]
[1757643361204,0.7985,4518.4,4518.3,18.11625123]
[1757643362210,0.7985,4518.4,4518.3,16.526]
[1757643363512,0.7985,4518.4,4518.3,19.7338]
[1757643364209,0.7985,4518.4,4518.3,16.3]
[1757643364408,0.7985,4518.4,4517.9,1.98191781]
[1757643364409,0.8062,4518.0,4517.9,1.98191781]
[1757643364609,0.8062,4518.0,4517.9,0.227]
[1757643364811,0.9231,4518.0,4517.9,16.527]
[1757643365710,0.9231,4518.0,4517.5,1.98191781]
[1757643365711,0.6816,4517.6,4517.5,1.98191781]
[1757643365907,0.7985,4517.6,4517.5,1.81879429]
[1757643366112,0.7985,4517.6,4517.5,0.227]
[1757643366316,0.7985,4517.6,4517.1,1.59179429]
[1757643366317,0.2934,4517.2,4517.1,1.59179429]
[1757643366505,0.1246,4517.0,4516.7,3.2078]
[1757643366704,0.3882,4516.8,4516.7,19.5078]
[1757643367016,0.6816,4516.8,4516.7,16.3]
[1757643367207,0.6816,4516.8,4516.7,0.227]
[1757643367807,0.1246,4517.0,4516.1,3.2078]
[1757643367808,0.6816,4516.3,4516.2,16.3]
[1757643368009,0.6816,4516.3,4516.2,16.527]
[1757643370015,0.6816,4516.3,4516.2,16.3]
[1757643370218,0.6816,4516.3,4516.2,16.527]
[1757643370716,0.6816,4516.3,4516.2,16.3]
[1757643370912,0.2934,4516.2,4516.1,3.2078]
[1757643371218,0.6816,4516.2,4516.1,3.4348]
[1757643371418,0.6816,4516.2,4516.1,3.2078]
[1757643371611,0.6816,4516.2,4516.0,0.227]
[1757643372412,0.1246,4515.5,4515.3,3.2078]
[1757643372611,0.1246,4515.5,4515.4,0.227]
[1757643373219,0.1246,4516.0,4515.5,0.39849]
[1757643373414,0.1246,4516.0,4515.6,0.227]
[1757643373415,0.2934,4515.9,4515.6,0.227]
[1757643373614,0.1246,4516.0,4515.6,0.227]
[1757643373810,0.2934,4515.9,4515.6,0.227]
[1757643374025,0.3176,4516.0,4515.6,0.227]
[1757643374217,0.4864,4515.9,4515.6,0.227]
[1757643374417,0.2934,4515.8,4515.7,16.3]
[1757643376015,0.6816,4515.4,4515.3,3.2078]
[1757643376321,0.6816,4515.4,4515.3,3.4348]
[1757643376524,0.6816,4515.4,4515.3,19.7348]
[1757643376724,0.2934,4515.4,4515.3,19.7348]
[1757643378219,0.6816,4515.4,4515.3,19.7348]
[1757643378724,0.2934,4515.4,4515.3,19.7348]
[1757643378927,0.418,4515.5,4515.3,19.7348]
[1757643379324,0.2934,4515.4,4515.3,19.7348]
[1757643382020,0.418,4515.5,4515.3,20.13331]
[1757643383322,0.2934,4515.4,4515.3,20.13331]
[1757643383826,0.1246,4516.5,4516.4,0.39841]
[1757643384122,0.1246,4516.5,4516.4,3.83321]
[1757643384328,3.3324,4517.0,4516.4,7.4348]
[1757643384628,0.418,4517.0,4516.8,0.39838]
[1757643384819,0.418,4517.0,4516.9,0.227]
[1757643385023,0.418,4517.0,4516.9,3.4348]
[1757643385936,0.611,4517.0,4516.9,3.4348]
[1757643386637,0.1246,4517.0,4516.9,3.4348]
[1757643386835,0.418,4517.5,4516.9,3.4348]
[1757643387035,0.1246,4517.0,4516.9,3.83316]
[1757643387239,0.418,4517.0,4516.9,3.83316]
[1757643388734,0.2887,4517.9,4517.6,0.3983]
[1757643388934,0.1246,4518.0,4517.7,3.4348]
[1757643389346,0.1246,4518.0,4517.8,16.3]
[1757643389535,0.4133,4518.0,4517.9,0.227]
[1757643390248,0.4133,4518.0,4517.9,16.527]
[1757643390942,0.6056,4518.0,4517.9,16.527]
[1757643392640,0.2887,4518.4,4518.3,0.39824]
[1757643392837,0.2887,4518.8,4518.3,8.15878477]
[1757643393141,0.1222,4519.0,4518.3,8.15878477]
[1757643393339,0.4133,4518.5,4518.4,16.3]
[1757643394437,0.4133,4518.5,4518.4,20.10144282]
[1757643395445,0.4133,4518.5,4518.4,16.3]
[1757643396840,0.7986,4518.5,4518.4,16.3]
[1757643397040,0.7986,4518.5,4518.4,16.526]
[1757643397745,0.7986,4518.5,4518.4,16.3]
[1757643397943,0.7986,4518.5,4518.4,16.526]
[1757643398738,0.4133,4518.5,4518.4,16.526]
[1757643399142,0.6056,4518.5,4518.4,16.526]
[1757643399342,0.7986,4518.5,4518.4,16.3]
[1757643399646,0.7986,4518.5,4518.4,16.526]
[1757643402245,0.7986,4518.5,4518.4,16.3]
[1757643402452,0.7986,4518.5,4518.4,16.526]
[1757643404749,0.7986,4518.5,4518.4,0.226]
[1757643405049,0.7986,4518.5,4518.4,16.3]
[1757643405243,0.7986,4518.5,4518.4,16.526]
[1757643406451,0.6056,4518.5,4518.4,16.526]
[1757643406645,0.4133,4518.5,4518.4,16.526]
[1757643407546,0.1222,4519.0,4518.4,16.526]
[1757643407547,0.2887,4518.9,4518.4,16.526]
[1757643407848,0.2887,4518.9,4518.7,3.2078]
[1757643408053,0.481,4518.9,4518.8,0.226]
[1757643409051,0.674,4518.9,4518.8,0.226]
[1757643409857,0.2887,4518.8,4518.7,3.2078]
[1757643410056,0.674,4518.8,4518.7,3.4338]
[1757643410552,0.481,4518.8,4518.7,3.4338]
[1757643412962,0.2887,4518.8,4518.7,3.4338]
[1757643414556,0.4109,4519.0,4518.7,3.4338]
[1757643414853,0.2887,4518.9,4518.7,3.4338]
[1757643415250,0.1222,4519.0,4518.7,3.4338]
[1757643415855,0.2887,4518.9,4518.7,3.4338]
[1757643416157,0.1222,4519.0,4518.7,3.4338]
[1757643416353,0.2887,4518.9,4518.7,3.4338]
[1757643416558,0.1222,4519.0,4518.7,3.4338]
[1757643417154,0.2887,4518.9,4518.7,3.4338]
[1757643417563,0.1222,4519.0,4518.7,3.4338]
[1757643417856,0.3169,4518.9,4518.7,3.4338]
[1757643418255,0.1222,4519.0,4518.7,3.4338]
[1757643418750,0.3169,4518.9,4518.7,3.4338]
[1757643419358,0.3169,4518.8,4518.7,3.4338]
[1757643419561,0.10942898,4518.8,4518.7,3.4338]
[1757643423963,0.50692898,4518.8,4518.7,3.4328]
[1757643424468,0.50692898,4518.8,4518.7,4.53013299]
[1757643426263,0.10942898,4518.8,4518.7,4.53013299]
[1757643427664,0.4391,4519.0,4518.7,4.53013299]
[1757643428362,0.1222,4519.0,4518.7,4.53013299]
[1757643428558,0.3169,4518.9,4518.7,4.53013299]
[1757643429567,0.1222,4519.0,4518.7,4.53013299]
[1757643429768,0.4391,4519.0,4518.7,4.53013299]
[1757643430164,0.3182,4519.5,4518.7,4.53013299]
[1757643430467,0.87481021,4519.4,4518.7,3.4328]
[1757643430671,0.196,4519.4,4518.7,3.4328]
[1757643430860,0.3169,4519.3,4518.7,3.4328]
[1757643431061,0.3169,4519.3,4519.2,3.2078]
[1757643431366,0.5129,4519.3,4519.2,3.4328]
[1757643431559,0.3169,4519.3,4519.2,4.53013299]
[1757643431958,0.5129,4519.3,4519.2,4.30513299]
[1757643432160,0.5129,4519.3,4519.2,4.53013299]
[1757643434268,0.7144,4519.3,4519.2,4.53013299]
[1757643435769,0.7144,4519.3,4519.2,3.4328]
[1757643436668,0.7144,4519.3,4519.2,3.2078]
[1757643436867,6.03301299,4519.3,4519.2,3.4328]
[1757643437170,6.03301299,4519.3,4517.5,2.77468494]
[1757643437171,0.7144,4518.6,4518.5,3.2078]
[1757643437468,0.8352,4518.5,4518.4,0.225]
[1757643438266,0.5183,4518.5,4518.4,1.52913299]
[1757643438466,0.1208,4519.0,4518.4,1.73943299]
[1757643438668,0.1222,4519.5,4518.9,1.51443299]
[1757643438868,0.5129,4519.1,4519.0,0.7314]
[1757643439066,0.5129,4519.1,4519.0,0.9564]
[1757643439268,0.7144,4519.1,4519.0,0.9564]
[1757643439573,0.7144,4519.1,4519.0,4.1642]
[1757643440072,0.5129,4519.5,4519.4,0.4171]
[1757643440275,1.08521088,4519.5,4519.4,0.7314]
[1757643440579,0.76831088,4519.5,4519.4,0.9564]
[1757643441069,0.57231088,4519.5,4519.4,0.9564]
[1757643441269,0.3169,4520.4,4519.5,0.1216]
[1757643441475,1.50797015,4520.3,4520.2,0.2068]
[1757643441670,1.28673014,4520.3,4520.2,0.2068]
[1757643442074,1.50796014,4520.3,4520.2,0.2068]
[1757643442675,1.28673014,4520.3,4520.2,0.2068]
[1757643443173,1.28673014,4520.3,4520.0,1.30413299]
[1757643443174,0.7144,4520.1,4520.0,1.30413299]
[1757643443378,1.28673014,4520.1,4520.0,0.2068]
[1757643444078,0.7144,4519.9,4519.5,3.2078]
[1757643444275,0.3975,4519.6,4519.5,3.6396]
[1757643444474,0.7144,4519.6,4519.5,3.6396]
[1757643444775,0.7144,4519.6,4519.5,4.1642]
[1757643444978,0.7144,4519.6,4519.5,3.8499]
[1757643445172,1.29370644,4519.6,4519.5,3.8499]
[1757643445377,0.7144,4519.6,4519.5,3.8499]
[1757643445773,1.29368947,4519.6,4519.5,3.8499]
[1757643445979,1.29368947,4519.6,4519.5,4.1642]
[1757643446976,1.29368947,4519.6,4519.5,3.9392]
[1757643447177,0.57928947,4519.6,4519.5,4.2858]
[1757643447380,0.3169,4519.9,4519.8,0.4171]
[1757643447679,1.10614203,4519.9,4519.8,1.80503299]
[1757643449882,1.31374203,4519.9,4519.8,1.80503299]
[1757643451777,1.31374203,4519.9,4519.8,0.7077]
[1757643452568,1.31374203,4519.9,4519.8,0.4171]
[1757643453282,1.31374203,4519.9,4519.8,0.2068]
[1757643454180,0.5226,4519.8,4519.7,0.4097]
[1757643454374,1.31184203,4519.8,4519.7,0.7003]
[1757643454574,1.10424203,4519.8,4519.7,0.7003]
[1757643454768,0.89424203,4519.8,4519.7,0.7003]
[1757643455274,1.10424203,4519.8,4519.7,0.7003]
[1757643455474,1.31184203,4519.8,4519.7,0.7003]
[1757643457176,1.10424203,4519.8,4519.7,0.7003]
[1757643457378,0.57924203,4519.8,4519.7,0.7003]
[1757643457585,0.315,4520.4,4519.8,0.2906]
[1757643457890,0.525,4520.4,4520.3,0.7003]
[1757643458079,1.12534456,4520.4,4520.3,0.7003]
[1757643458975,1.33294456,4520.4,4520.2,0.225]
[1757643459184,1.33294456,4520.3,4520.2,0.225]
[1757643459574,1.33294456,4520.3,4520.2,0.4226]
[1757643459777,1.33294456,4520.3,4520.2,0.225]
[1757643462184,1.33294456,4520.3,4520.2,0.4226]
[1757643463290,3.3888,4521.1,4520.2,0.4226]
[1757643463291,0.21,4520.7,4520.6,0.7003]
[1757643463480,0.21,4520.7,4520.6,2.20870019]
[1757643463681,0.21,4520.7,4520.6,5.41650019]
[1757643463983,0.225,4521.6,4520.6,5.12590019]
[1757643464189,0.7326,4521.3,4521.2,0.1976]
[1757643464486,1.33613474,4521.3,4521.2,0.1976]
[1757643464986,1.33613474,4521.3,4520.9,0.2906]
[1757643465191,0.8555,4521.0,4520.9,0.4882]
[1757643465486,0.1229,4522.0,4520.9,0.7003]
[1757643465684,0.8555,4522.0,4521.9,0.4097]
[1757643465884,0.8555,4522.0,4521.9,0.1976]
[1757643465885,1.45855635,4522.0,4521.9,0.1976]
[1757643466183,1.45855635,4522.0,4521.2,1.28340019]
[1757643466184,0.7326,4521.4,4521.2,0.225]
[1757643466484,1.33565635,4521.3,4521.2,0.4226]
[1757643466688,1.33565635,4521.3,4521.2,0.9253]
[1757643466988,0.525,4521.3,4521.2,2.20870019]
[1757643467386,0.1229,4522.0,4521.2,1.91810019]
[1757643467588,0.7326,4521.8,4521.7,0.1976]
[1757643467787,1.33516963,4521.8,4521.7,0.1976]
[1757643468089,1.33516963,4521.8,4521.5,0.226]
[1757643468288,0.7326,4521.6,4521.5,0.4236]
[1757643468586,1.33516963,4521.6,4521.5,0.9263]
[1757643468781,1.33516963,4521.6,4521.5,0.6357]
[1757643468981,0.60256963,4521.6,4521.5,1.052]
[1757643469382,1.33516963,4521.6,4521.5,0.9263]
[1757643470486,0.60256963,4521.6,4521.5,1.052]
[1757643470684,0.525,4522.0,4521.9,0.4097]
[1757643470879,0.525,4522.0,4521.9,0.9263]
[1757643471084,1.12722394,4522.0,4521.9,0.9263]
[1757643471581,0.81222394,4522.0,4521.9,0.9263]
[1757643472390,1.33482394,4522.0,4521.9,0.9263]
[1757643472781,1.14272394,4522.0,4521.8,3.2078]
[1757643472987,1.14272394,4522.0,4521.8,3.4054]
[1757643472988,1.33482394,4521.9,4521.8,3.4054]
[1757643473187,1.33482394,4521.9,4521.8,3.6314]
[1757643473390,0.7326,4521.9,4521.8,19.9314]
[1757643473783,0.7326,4521.9,4521.8,3.6314]
[1757643474184,1.3343319,4521.9,4521.8,0.226]
[1757643475793,0.7326,4521.9,4521.8,0.226]
[1757643476291,0.7326,4521.3,4521.2,3.2078]
[1757643476493,0.7326,4521.3,4521.2,3.4338]
[1757643476786,0.8555,4521.0,4520.9,0.225]
[1757643477087,0.7326,4520.9,4520.8,0.4226]
[1757643477294,0.7326,4520.9,4520.8,17.2253]
[1757643477789,0.7326,4520.9,4520.8,0.7003]
[1757643477991,0.1229,4521.5,4520.8,0.6347]
[1757643478192,0.7078,4521.4,4521.3,0.2047]
[1757643479589,0.7078,4521.4,4521.3,0.7041]
[1757643480692,0.4981,4521.4,4521.3,1.98750019]
[1757643481293,0.7078,4521.4,4521.3,1.98750019]
[1757643482691,0.7078,4521.4,4521.3,2.21250019]
[1757643485395,0.7078,4521.4,4521.3,0.4051]
[1757643485596,0.7078,4521.4,4521.3,0.2047]
[1757643485796,0.7078,4521.4,4521.2,0.225]
[1757643488295,0.4016,4521.4,4521.1,3.2078]
[1757643488494,0.7078,4520.6,4520.5,3.2078]
[1757643488798,0.7078,4520.6,4520.5,5.19530019]
[1757643490196,0.7078,4521.4,4521.3,0.4051]
[1757643490500,1.31859079,4521.4,4521.3,0.4051]
[1757643490891,1.31859079,4521.4,4521.0,0.299]
[1757643491093,0.4016,4520.9,4520.8,0.4297]
[1757643491401,0.7078,4520.9,4520.8,0.4297]
[1757643491795,0.7078,4520.9,4520.7,1.28340019]
[1757643491796,0.4016,4520.7,4520.6,0.225]
[1757643491992,0.7078,4520.7,4520.6,0.225]
[1757643492297,0.4981,4520.7,4520.6,0.9291]
[1757643494600,0.4981,4521.2,4521.1,0.299]
[1757643494800,1.10917766,4521.2,4521.1,0.7041]
[1757643496087,1.31887766,4521.2,4521.1,0.7041]
[1757643496705,1.31887766,4521.2,4521.1,0.4051]
[1757643497198,1.31887766,4521.2,4521.0,0.225]
[1757643497399,1.31887766,4521.1,4521.0,0.225]
[1757643497596,1.31887766,4521.1,4521.0,0.4297]
[1757643497797,0.7078,4521.1,4521.0,0.9291]
[1757643499100,0.4981,4521.1,4521.0,0.9291]
[1757643499597,0.4981,4521.1,4520.5,3.3326]
[1757643499598,0.7078,4521.1,4520.5,3.2078]
[1757643499804,0.7078,4520.6,4520.5,4.1369]
[1757643500607,0.7078,4520.6,4520.5,5.42030019]
[1757643502104,0.7078,4520.6,4520.5,5.12130019]
[1757643502303,0.7078,4520.6,4520.5,3.6375]
[1757643502502,0.7078,4520.6,4520.5,5.42030019]
[1757643502702,0.4981,4520.6,4520.5,5.42030019]
[1757643504408,0.7078,4520.6,4520.5,5.12130019]
[1757643504708,0.7078,4520.6,4520.5,4.92090019]
[1757643505598,1.46695226,4521.7,4521.3,0.299]
[1757643505803,0.61344556,4521.6,4521.5,1.98750019]
[1757643506011,0.61344556,4521.6,4521.5,2.21250019]
[1757643506309,0.61344556,4521.6,4521.5,18.51250019]
[1757643506711,0.61344556,4521.6,4521.5,2.21250019]
[1757643506902,1.32124556,4521.6,4521.5,0.6301]
[1757643507107,1.32124556,4521.6,4521.5,0.2047]
[1757643508614,0.5427,4521.5,4521.2,16.3]
[1757643508911,0.7305,4521.3,4521.2,0.4232]
[1757643510908,1.34230988,4521.3,4521.2,0.4232]
[1757643511109,0.7305,4521.3,4521.2,0.4232]
[1757643511309,0.7305,4521.3,4521.2,0.7166]
[1757643511611,1.34234634,4521.3,4521.2,0.7166]
[1757643511808,0.7305,4521.3,4521.2,0.7166]
[1757643512015,1.34234494,4521.3,4521.2,0.7166]
[1757643513109,1.34234494,4521.3,4521.2,0.4916]
[1757643513514,1.34234494,4521.3,4521.2,0.7023]
[1757643514012,0.5181,4521.3,4521.2,0.7023]
[1757643514217,1.13007234,4521.3,4521.2,0.7023]
[1757643514511,0.3086,4522.3,4521.2,8.71620019]
[1757643514714,0.3086,4522.4,4522.2,1.28340019]
[1757643514916,0.5181,4522.4,4522.3,0.226]
[1757643515217,0.5181,4522.4,4522.3,16.526]
[1757643515908,0.7305,4522.4,4522.3,16.526]
[1757643516309,0.7305,4522.4,4522.3,17.62165327]
[1757643517410,0.3086,4522.4,4522.3,17.62165327]
[1757643518115,0.5181,4522.4,4522.3,17.62165327]
[1757643519217,0.3086,4522.4,4522.3,17.62165327]
[1757643520716,0.5181,4522.4,4522.3,17.62165327]
[1757643521723,0.7305,4522.4,4522.3,17.62165327]
[1757643525815,0.3086,4522.4,4522.3,17.62165327]
[1757643529318,0.7305,4522.4,4522.3,17.62065327]
[1757643533222,0.7305,4522.4,4522.3,17.39565327]
[1757643533423,0.7305,4522.4,4522.3,17.62065327]
[1757643533619,0.7305,4522.4,4522.3,17.39565327]
[1757643533824,0.7305,4522.4,4522.3,17.62065327]
[1757643534025,0.7305,4522.4,4522.3,17.39565327]
[1757643534227,0.7305,4522.4,4522.3,17.62065327]
[1757643536124,0.7305,4522.4,4522.3,17.39565327]
[1757643536325,1.33284668,4522.4,4522.2,0.3475]
[1757643536626,1.33284668,4522.3,4522.2,0.3475]
[1757643537427,0.3086,4521.9,4521.5,3.2078]
[1757643537628,0.7081,4521.6,4521.5,3.2078]
[1757643537825,0.7081,4521.6,4521.5,1.09565327]
[1757643537826,1.31044668,4521.6,4521.5,1.09565327]
[1757643539224,1.31044668,4521.6,4520.2,3.2078]
[1757643539225,0.2899,4520.4,4520.2,3.2078]
[1757643539427,0.336,4520.0,4519.6,3.2078]
[1757643539629,0.42,4519.2,4519.1,3.2078]
[1757643539817,0.42,4518.1,4516.9,2.77468494]
[1757643540132,0.1273,4518.5,4517.0,0.225]
[1757643540133,0.5012,4517.4,4517.0,0.225]
[1757643540323,0.2899,4516.9,4516.5,0.225]
[1757643540525,0.5012,4516.9,4516.5,0.225]
[1757643540723,0.1273,4517.0,4516.1,3.2078]
[1757643540724,0.2899,4516.4,4516.1,3.2078]
[1757643540924,0.5012,4516.4,4516.2,0.225]
[1757643541229,0.2899,4516.4,4516.3,1.09565327]
[1757643542531,0.1273,4516.5,4516.2,4.03065779]
[1757643543216,3.2078,4517.1,4516.2,4.03065779]
[1757643543417,3.2078,4518.3,4517.0,7.01345779]
[1757643543622,3.2078,4518.3,4517.9,3.80565779]
[1757643543815,3.2078,4518.3,4518.0,0.226]
[1757643544434,0.1273,4518.5,4518.0,16.526]
[1757643545325,0.2899,4518.9,4518.0,16.526]
[1757643545526,0.1273,4519.0,4518.5,3.80565779]
[1757643545728,0.2899,4518.9,4518.5,4.03165779]
[1757643546735,0.1273,4519.0,4518.5,4.03165779]
[1757643547030,0.2899,4518.9,4518.5,4.03165779]
[1757643547226,0.1273,4519.0,4518.5,4.03165779]
[1757643547424,0.4172,4519.0,4518.5,4.03165779]
[1757643547624,0.2899,4518.9,4518.5,4.03165779]
[1757643547831,0.5012,4518.4,4518.0,16.3]
[1757643548125,0.2899,4518.4,4518.2,3.80565779]
[1757643548324,0.2899,4518.9,4518.3,0.226]
[1757643548522,0.1273,4519.0,4518.3,0.226]
[1757643548929,0.2899,4518.9,4518.3,0.226]
[1757643549331,3.2078,4519.2,4518.8,3.80565779]
[1757643549530,3.2078,4519.2,4518.9,0.226]
[1757643549731,0.1273,4519.5,4518.9,0.226]
[1757643549928,0.1273,4519.5,4519.0,16.3]
[1757643550123,0.2899,4519.4,4519.1,0.226]
[1757643550329,3.2078,4519.7,4519.1,0.226]
[1757643550525,3.2078,4519.7,4519.4,3.80565779]
[1757643550831,0.1273,4520.5,4519.4,3.80565779]
[1757643550832,3.709,4520.4,4519.5,0.226]
[1757643551034,3.709,4520.4,4519.6,3.2078]
[1757643551227,3.4977,4520.4,4520.0,3.80565779]
[1757643551531,3.2078,4520.4,4520.1,0.226]
[1757643552331,3.4977,4520.4,4520.1,0.226]
[1757643552721,0.2899,4520.4,4520.1,0.226]
[1757643553927,0.2899,4520.4,4519.6,3.2078]
[1757643553928,0.7099,4519.7,4519.6,3.2078]
[1757643554136,0.1273,4519.5,4519.1,3.2078]
[1757643554333,0.2899,4519.2,4519.1,3.2078]
[1757643554534,0.2899,4519.2,4519.1,3.4338]
[1757643557331,0.2899,4519.2,4519.1,0.226]
[1757643557827,0.5012,4519.2,4519.1,0.226]
[1757643558233,0.7099,4519.2,4519.1,0.226]
[1757643558930,0.8372,4519.0,4518.9,16.3]
[1757643559131,0.8372,4519.0,4518.9,16.526]
[1757643560533,0.6285,4519.0,4518.9,16.526]
[1757643560840,3.4977,4519.3,4518.9,16.526]
[1757643561042,3.2078,4519.3,4518.9,16.526]
[1757643561732,0.2899,4519.2,4518.9,16.526]
[1757643562140,3.2078,4519.3,4518.9,16.526]
[1757643562534,3.4977,4519.3,4518.9,16.526]
[1757643562734,0.2899,4519.3,4518.9,16.526]
[1757643563031,0.1273,4519.5,4518.9,16.526]
[1757643563632,0.1273,4520.0,4519.3,3.80565779]
[1757643563837,0.2899,4520.1,4519.4,0.226]
[1757643564038,3.2078,4520.4,4519.9,3.80565779]
[1757643564246,0.2899,4520.3,4520.0,16.526]
[1757643564429,0.4172,4520.5,4520.0,16.526]
[1757643564630,0.2899,4520.4,4520.0,16.526]
[1757643565039,0.1273,4520.5,4520.0,16.526]
[1757643565241,0.2899,4520.4,4520.0,16.526]
[1757643565740,0.1273,4520.5,4520.0,16.526]
[1757643565942,0.2899,4520.4,4520.0,16.526]
[1757643566536,0.1273,4520.5,4520.0,16.526]
[1757643567035,0.2899,4520.4,4520.0,16.526]
[1757643567242,0.1273,4520.5,4520.0,16.526]
[1757643567543,0.3296,4520.5,4520.0,16.526]
[1757643567745,0.3035,4520.4,4520.0,16.526]
[1757643567943,0.1273,4520.5,4520.0,16.526]
[1757643568744,0.5058,4520.2,4520.1,0.226]
[1757643569241,0.3035,4520.1,4520.0,16.3]
[1757643569437,0.3035,4520.1,4520.0,16.526]
[1757643571440,0.5058,4520.1,4520.0,16.526]
[1757643571838,0.1273,4520.5,4520.0,16.526]
[1757643572045,0.3035,4520.4,4520.0,16.526]
[1757643572245,3.5113,4520.9,4520.0,16.526]
[1757643572544,0.3035,4520.7,4520.5,3.80565779]
[1757643572750,3.4101,4520.9,4520.6,0.226]
[1757643572942,0.3035,4520.7,4520.6,0.226]
[1757643573449,0.90805322,4520.7,4520.6,0.226]
[1757643573942,3.2078,4520.9,4520.6,0.226]
[1757643574145,0.3035,4521.2,4520.6,0.226]
[1757643574340,0.60451747,4521.1,4520.6,0.226]
[1757643574541,0.3035,4521.1,4520.7,16.3]
[1757643574747,0.3035,4520.9,4520.8,0.226]
[1757643575544,0.3035,4520.9,4520.8,16.526]
[1757643576742,0.7163,4520.9,4520.8,16.3]
[1757643577143,0.7163,4520.9,4520.8,16.526]
[1757643577947,0.7163,4520.3,4520.2,3.80565779]
[1757643578138,0.7163,4520.3,4520.1,3.2078]
[1757643578339,0.7163,4520.2,4520.1,3.2078]
[1757643578749,4.7163,4520.2,4520.1,3.4338]
[1757643579251,1.32139282,4520.2,4520.1,3.4338]
[1757643581248,0.7163,4520.2,4520.1,3.4338]
[1757643582349,1.32151987,4520.2,4520.1,3.4338]
[1757643582858,5.32151987,4520.2,4520.1,3.4338]
[1757643585251,0.7163,4520.2,4520.1,3.4338]
[1757643586247,0.5058,4520.2,4520.1,3.4338]
[1757643586756,0.3035,4520.2,4520.1,3.4338]
[1757643588653,0.3035,4520.4,4520.1,7.75702851]
[1757643588855,0.1211,4520.5,4520.1,7.75702851]
[1757643589658,0.4246,4520.5,4520.1,7.75702851]
[1757643589960,0.3035,4520.4,4520.2,16.3]
[1757643590146,0.3035,4520.4,4520.3,0.226]
[1757643590855,0.3035,4520.4,4520.3,16.526]
[1757643591554,0.3035,4520.8,4520.3,16.526]
[1757643591748,3.3289,4521.0,4520.3,16.526]
[1757643591749,0.3035,4520.4,4520.3,16.526]
[1757643593449,0.5058,4520.4,4520.3,16.526]
[1757643593650,0.3035,4520.4,4520.3,16.526]
[1757643597655,0.5058,4520.4,4520.3,16.526]
[1757643597857,0.7101,4520.4,4520.3,16.526]
[1757643598660,0.5058,4520.4,4520.3,16.526]
[1757643600172,0.7101,4520.4,4520.3,16.526]
[1757643600665,0.1211,4520.5,4520.1,3.2078]
[1757643600666,0.3991,4520.2,4520.1,3.2078]
[1757643600862,0.7054,4520.2,4520.1,3.2078]
[1757643601168,0.7054,4520.2,4520.1,3.4328]
[1757643602963,0.7054,4520.2,4520.1,0.225]
[1757643603665,0.3063,4520.2,4520.1,0.225]
[1757643605169,0.5011,4520.2,4520.1,0.225]
[1757643606165,1.10833876,4520.2,4520.1,16.525]
[1757643606869,1.31263876,4520.2,4520.1,16.525]
[1757643608568,0.3063,4519.6,4519.0,3.2078]
[1757643608767,0.126,4520.0,4519.1,0.225]
[1757643608768,0.7054,4519.2,4519.1,0.225]
[1757643609064,0.7054,4519.2,4519.1,16.525]
[1757643609265,0.3063,4519.2,4519.1,16.525]
[1757643609463,3.2078,4519.8,4519.1,16.525]
[1757643609657,0.3063,4519.7,4519.4,4.32322851]
[1757643609862,0.3063,4519.7,4519.5,0.225]
[1757643610461,0.126,4520.0,4519.5,0.225]
[1757643610662,0.3063,4520.2,4519.5,0.225]
[1757643611061,0.5011,4520.2,4519.5,0.225]
[1757643613865,0.5011,4519.9,4519.5,0.225]
[1757643614070,0.3063,4519.9,4519.5,0.225]
[1757643614264,0.3063,4519.9,4519.6,3.2078]
[1757643614464,0.3063,4519.9,4519.7,0.225]
[1757643614769,0.3063,4519.9,4519.8,16.3]
[1757643617072,0.5011,4519.9,4519.8,16.3]
[1757643617571,0.7054,4519.9,4519.8,16.3]
[1757643618170,4.7054,4519.9,4519.8,0.225]